Workbook

Sheet Dashboard
A1: Sent this month | D1: 5624 | F1: Left process at stage 1: | J1: 1523 | L1: Left process at stage 2: | P1: 1028 | R1: Exited process: | V1: 1586 | X1: Settled: | AA1: 943
A3: Δ from last month: | D3: -1561 | F3: Δ from last month: | J3: -394 | L3: Δ from last month: | P3: -136 | R3: Δ from last month: | V3: -432 | X3: Δ from last month: | AA3: -139
A5: Rolling 12 months: | D5: 86134 | F5: Rolling 12 months: | J5: 20649 | L5: Rolling 12 months: | P5: 14373 | R5: Rolling 12 months: | V5: 23866 | X5: Rolling 12 months: | AA5: 11713
A7: Left Process Breakdowns - Stage 1:
A9: Reason | H9: This Month | J9: Last Month | L9: Δ
A10: Liability Decision Timeout | H10: 1255 | J10: 1546 | L10: -291
A11: Other | H11: 268 | J11: 371 | L11: -103
A12: Total | H12: 1523 | J12: 1917 | L12: -394
A13: Left Process Breakdowns - Stage 2:
A15: Reason | H15: This Month | J15: Last Month | L15: Δ
A16: Interim payment more than £1,000 not agreed: | H16: 0 | J16: 1 | L16: -1
A17: Settlement pack repudiated: | H17: 5 | J17: 6 | L17: -1
A18: Settlement pack timeout: | H18: 350 | J18: 346 | L18: 4
A19: No agreement; Court Proceedings pack: | H19: 673 | J19: 811 | L19: -138
A20: Total | H20: 1028 | J20: 1164 | L20: -136

Sheet Backing Sheet Data
A1: Reporting date | B1: 2023-12-01
A2: Previous month | B2: 2023-11-01
R3: Period | S3: CNFs Sent | T3: CNFs left at Stage 1 | U3: Stage 2 Exit | V3: Exit process | W3: Court Pack | X3: Settled claims | Y3: General Damages
A4: Rolling 12 CNFs sent | E4: Average General Damages chart data | R4: 2010-05-01 | S4: 10467 | T4: 494 | U4: 0 | V4: 0 | W4: 0 | X4: 3 | Y4: 1216.666666
R5: 2010-06-01 | S5: 38405 | T5: 8565 | U5: 10 | V5: 0 | W5: 0 | X5: 325 | Y5: 1029.243076
A6: Period | B6: Rolling 12 Sent | E6: Row Labels | F6: Ave General Damages | R6: 2010-07-01 | S6: 47904 | T6: 17692 | U6: 147 | V6: 0 | W6: 0 | X6: 1156 | Y6: 1266.971444
A7: 2023-01-01 | B7: 90793 | E7: 2023-01-01 | F7: 5543.567183 | R7: 2010-08-01 | S7: 49580 | T7: 20078 | U7: 637 | V7: 0 | W7: 9 | X7: 3109 | Y7: 1488.610151
A8: 2023-02-01 | B8: 90346 | E8: 2023-02-01 | F8: 5399.092584 | R8: 2010-09-01 | S8: 56926 | T8: 23485 | U8: 1249 | V8: 0 | W8: 335 | X8: 5579 | Y8: 1598.794205
A9: 2023-03-01 | B9: 89721 | E9: 2023-03-01 | F9: 5434.629934 | I9: CNF Sent Monthly Volumes Chart Data | R9: 2010-10-01 | S9: 57967 | T9: 25210 | U9: 1628 | V9: 0 | W9: 1708 | X9: 7175 | Y9: 1734.369194
A10: 2023-04-01 | B10: 88550 | E10: 2023-04-01 | F10: 5590.322663 | R10: 2010-11-01 | S10: 65286 | T10: 28094 | U10: 2227 | V10: 0 | W10: 2083 | X10: 10021 | Y10: 1748.922972
A11: 2023-05-01 | B11: 87498 | E11: 2023-05-01 | F11: 5552.238797 | I11: Sum of ClaimCount | J11: Column Labels | R11: 2010-12-01 | S11: 51771 | T11: 27567 | U11: 2539 | V11: 0 | W11: 268 | X11: 10687 | Y11: 1730.439213
A12: 2023-06-01 | B12: 87886 | E12: 2023-06-01 | F12: 5526.401872 | I12: Row Labels | J12: RTA | K12: PL | L12: ELD | M12: EL | N12: Grand Total | R12: 2011-01-01 | S12: 66395 | T12: 23279 | U12: 2020 | V12: 0 | W12: 448 | X12: 13583 | Y12: 1747.046681
A13: 2023-07-01 | B13: 87649 | E13: 2023-07-01 | F13: 5806.847549 | I13: 2023-01-01 | J13: 7409 | K13: 3373 | L13: 501 | M13: 2542 | N13: 13825 | R13: 2011-02-01 | S13: 63216 | T13: 29094 | U13: 2043 | V13: 0 | W13: 450 | X13: 15646 | Y13: 1785.893702
A14: 2023-08-01 | B14: 87326 | E14: 2023-08-01 | F14: 5673.7982 | I14: 2023-02-01 | J14: 7487 | K14: 3297 | L14: 521 | M14: 2355 | N14: 13660 | R14: 2011-03-01 | S14: 67667 | T14: 31396 | U14: 2433 | V14: 26 | W14: 750 | X14: 20140 | Y14: 1801.133454
A15: 2023-09-01 | B15: 86790 | E15: 2023-09-01 | F15: 5357.498463 | I15: 2023-03-01 | J15: 7465 | K15: 3568 | L15: 533 | M15: 2657 | N15: 14223 | R15: 2011-04-01 | S15: 54185 | T15: 22478 | U15: 1885 | V15: 2206 | W15: 594 | X15: 16306 | Y15: 1839.733078
A16: 2023-10-01 | B16: 87033 | E16: 2023-10-01 | F16: 5620.694312 | I16: 2023-04-01 | J16: 6139 | K16: 2734 | L16: 543 | M16: 2151 | N16: 11567 | R16: 2011-05-01 | S16: 64722 | T16: 23751 | U16: 2030 | V16: 4614 | W16: 710 | X16: 18560 | Y16: 1871.737888
A17: 2023-11-01 | B17: 86647 | E17: 2023-11-01 | F17: 5645.758971 | I17: 2023-05-01 | J17: 6874 | K17: 3172 | L17: 615 | M17: 2215 | N17: 12876 | R17: 2011-06-01 | S17: 66783 | T17: 26464 | U17: 2250 | V17: 5641 | W17: 801 | X17: 20923 | Y17: 1867.249937
A18: 2023-12-01 | B18: 86134 | E18: 2023-12-01 | F18: 4781.216723 | I18: 2023-06-01 | J18: 7707 | K18: 3452 | L18: 640 | M18: 2561 | N18: 14360 | R18: 2011-07-01 | S18: 64567 | T18: 24356 | U18: 2052 | V18: 5406 | W18: 934 | X18: 20450 | Y18: 1896.707958
E19: Grand Total | F19: 65932.06725 | I19: 2023-07-01 | J19: 7302 | K19: 3351 | L19: 695 | M19: 2470 | N19: 13818 | R19: 2011-08-01 | S19: 64326 | T19: 25819 | U19: 1902 | V19: 6289 | W19: 873 | X19: 20891 | Y19: 1909.357189
I20: 2023-08-01 | J20: 7477 | K20: 3398 | L20: 1003 | M20: 2447 | N20: 14325 | R20: 2011-09-01 | S20: 65785 | T20: 24177 | U20: 1658 | V20: 5963 | W20: 867 | X20: 21695 | Y20: 1928.945236
I21: 2023-09-01 | J21: 7027 | K21: 3141 | L21: 3524 | M21: 2369 | N21: 16061 | R21: 2011-10-01 | S21: 68190 | T21: 24463 | U21: 1471 | V21: 6639 | W21: 842 | X21: 21088 | Y21: 1953.441882
B22: 43821 | E22: CNF Sent Monthly Volumes | I22: 2023-10-01 | J22: 7854 | K22: 3328 | L22: 423 | M22: 2491 | N22: 14096 | R22: 2011-11-01 | S22: 71093 | T22: 26428 | U22: 1536 | V22: 7470 | W22: 845 | X22: 23022 | Y22: 1950.818934
A23: Exit Process Reason | B23: Total | I23: 2023-11-01 | J23: 7769 | K23: 3228 | L23: 469 | M23: 2524 | N23: 13990 | R23: 2011-12-01 | S23: 57326 | T23: 22991 | U23: 1630 | V23: 6373 | W23: 670 | X23: 18466 | Y23: 1932.120264
A24: Claim requires further investigation | B24: 19307 | E24: DatePeriod | F24: ClaimType | G24: ClaimCount | I24: 2023-12-01 | J24: 5624 | K24: 2020 | L24: 209 | M24: 1506 | N24: 9359 | R24: 2012-01-01 | S24: 72724 | T24: 22770 | U24: 1339 | V24: 7711 | W24: 857 | X24: 22313 | Y24: 1967.239018
A25: Other | B25: 16034 | E25: 2022-10-01 | F25: EL | G25: 1621 | I25: Grand Total | J25: 86134 | K25: 38062 | L25: 9676 | M25: 28288 | N25: 162160 | R25: 2012-02-01 | S25: 69809 | T25: 25242 | U25: 1739 | V25: 8982 | W25: 751 | X25: 23015 | Y25: 1956.70998
A26: Wrong Portal | B26: 4912 | E26: 2022-11-01 | F26: EL | G26: 2627 | R26: 2012-03-01 | S26: 69037 | T26: 25697 | U26: 1779 | V26: 9379 | W26: 856 | X26: 25724 | Y26: 1983.518959
A27: Duplicated claim | B27: 1460 | E27: 2022-12-01 | F27: EL | G27: 1666 | I27: Left Process Breakdown | R27: 2012-04-01 | S27: 62450 | T27: 21314 | U27: 1589 | V27: 8158 | W27: 763 | X27: 21884 | Y27: 1988.494681
A28: Value of claim exceeds the upper limit | B28: 497 | E28: 2023-01-01 | F28: EL | G28: 2542 | R28: 2012-05-01 | S28: 71005 | T28: 25541 | U28: 1678 | V28: 9858 | W28: 866 | X28: 25577 | Y28: 1989.041233
A29: Stage 1 costs not paid on time | B29: 419 | E29: 2023-02-01 | F29: EL | G29: 2355 | I29: This Month LDT | J29: This Month Other Liability | K29: This Month Interim Payment Not Agreed | L29: This Month Repudiated | M29: This Month Timeout | N29: This Month Court Proceedings | R29: 2012-06-01 | S29: 62501 | T29: 22180 | U29: 1594 | V29: 8645 | W29: 746 | X29: 20352 | Y29: 1982.574425
A30: Incomplete information provided on CNF | B30: 407 | E30: 2023-03-01 | F30: EL | G30: 2657 | I30: 1255 | J30: 268 | K30: 0 | L30: 5 | M30: 350 | N30: 673 | R30: 2012-07-01 | S30: 70976 | T30: 26065 | U30: 1674 | V30: 10933 | W30: 864 | X30: 23296 | Y30: 2007.200811
A31: Claim is too complex for process | B31: 257 | E31: 2023-04-01 | F31: EL | G31: 2151 | R31: 2012-08-01 | S31: 67753 | T31: 25025 | U31: 1777 | V31: 10848 | W31: 867 | X31: 22097 | Y31: 1992.352598
A32: Withdrawal of offer | B32: 213 | E32: 2023-05-01 | F32: EL | G32: 2215 | R32: 2012-09-01 | S32: 67342 | T32: 22271 | U32: 1666 | V32: 10583 | W32: 3482 | X32: 20228 | Y32: 1992.967576
A33: Withdrawl of claim | B33: 178 | E33: 2023-06-01 | F33: EL | G33: 2561 | R33: 2012-10-01 | S33: 81060 | T33: 28025 | U33: 1967 | V33: 12507 | W33: 932 | X33: 23908 | Y33: 1994.961169
A34: Interim Payment request not answered and/or paid on time | B34: 96 | E34: 2023-07-01 | F34: EL | G34: 2470 | R34: 2012-11-01 | S34: 77992 | T34: 26162 | U34: 1396 | V34: 12674 | W34: 903 | X34: 24170 | Y34: 2016.709201
A35: Value of claim below £1,000 | B35: 16 | E35: 2023-08-01 | F35: EL | G35: 2447 | R35: 2012-12-01 | S35: 60190 | T35: 23165 | U35: 1165 | V35: 10270 | W35: 833 | X35: 17586 | Y35: 2035.591698
A36: Interim Payment partial offer not accepted | B36: 16 | E36: 2023-09-01 | F36: EL | G36: 2369 | R36: 2013-01-01 | S36: 81349 | T36: 24795 | U36: 1148 | V36: 12569 | W36: 939 | X36: 23449 | Y36: 2055.160441
A37: Interim payment for child claimant | B37: 9 | E37: 2023-10-01 | F37: EL | G37: 2491 | R37: 2013-02-01 | S37: 72820 | T37: 24810 | U37: 1086 | V37: 12599 | W37: 879 | X37: 21402 | Y37: 2083.04
E38: 2023-11-01 | F38: EL | G38: 2524 | R38: 2013-03-01 | S38: 90924 | T38: 23706 | U38: 1157 | V38: 13113 | W38: 985 | X38: 21950 | Y38: 2100.967706
E39: 2023-12-01 | F39: EL | G39: 1506 | R39: 2013-04-01 | S39: 78812 | T39: 29710 | U39: 1141 | V39: 15792 | W39: 1109 | X39: 22528 | Y39: 2099.223125
E40: 2022-10-01 | F40: ELD | G40: 292 | R40: 2013-05-01 | S40: 54076 | T40: 22715 | U40: 1315 | V40: 12290 | W40: 1231 | X40: 22072 | Y40: 2136.024392
E41: 2022-11-01 | F41: ELD | G41: 495 | R41: 2013-06-01 | S41: 58746 | T41: 15847 | U41: 1051 | V41: 10657 | W41: 1210 | X41: 20109 | Y41: 2206.315955
E42: 2022-12-01 | F42: ELD | G42: 351 | R42: 2013-07-01 | S42: 72312 | T42: 18884 | U42: 1178 | V42: 12827 | W42: 1493 | X42: 22263 | Y42: 2234.743275
E43: 2023-01-01 | F43: ELD | G43: 501 | R43: 2013-08-01 | S43: 57287 | T43: 18093 | U43: 881 | V43: 11755 | W43: 1651 | X43: 18989 | Y43: 2293.475094
E44: 2023-02-01 | F44: ELD | G44: 521 | R44: 2013-09-01 | S44: 62232 | T44: 16494 | U44: 958 | V44: 11238 | W44: 1530 | X44: 19131 | Y44: 2309.026649
E45: 2023-03-01 | F45: ELD | G45: 533 | R45: 2013-10-01 | S45: 68731 | T45: 18794 | U45: 1043 | V45: 12043 | W45: 1654 | X45: 21136 | Y45: 2332.592444
E46: 2023-04-01 | F46: ELD | G46: 543 | R46: 2013-11-01 | S46: 66498 | T46: 17041 | U46: 844 | V46: 11525 | W46: 1642 | X46: 20238 | Y46: 2390.605935
E47: 2023-05-01 | F47: ELD | G47: 615 | R47: 2013-12-01 | S47: 56200 | T47: 16790 | U47: 1046 | V47: 10894 | W47: 1545 | X47: 16293 | Y47: 2404.856563
E48: 2023-06-01 | F48: ELD | G48: 640 | R48: 2014-01-01 | S48: 73685 | T48: 16582 | U48: 1001 | V48: 12441 | W48: 1865 | X48: 20266 | Y48: 2423.049586
E49: 2023-07-01 | F49: ELD | G49: 695 | R49: 2014-02-01 | S49: 66834 | T49: 17588 | U49: 1080 | V49: 12395 | W49: 1803 | X49: 18398 | Y49: 2461.424875
E50: 2023-08-01 | F50: ELD | G50: 1003 | R50: 2014-03-01 | S50: 70411 | T50: 18066 | U50: 994 | V50: 16856 | W50: 2011 | X50: 19780 | Y50: 2506.508751
E51: 2023-09-01 | F51: ELD | G51: 3524 | R51: 2014-04-01 | S51: 63822 | T51: 17524 | U51: 1047 | V51: 11508 | W51: 1959 | X51: 18920 | Y51: 2568.235616
E52: 2023-10-01 | F52: ELD | G52: 423 | R52: 2014-05-01 | S52: 66045 | T52: 17512 | U52: 1065 | V52: 12127 | W52: 2290 | X52: 18710 | Y52: 2566.473616
E53: 2023-11-01 | F53: ELD | G53: 469 | R53: 2014-06-01 | S53: 66521 | T53: 19235 | U53: 1171 | V53: 12515 | W53: 2408 | X53: 19345 | Y53: 2551.167894
E54: 2023-12-01 | F54: ELD | G54: 209 | R54: 2014-07-01 | S54: 73384 | T54: 19877 | U54: 1261 | V54: 13916 | W54: 3044 | X54: 21497 | Y54: 2578.16443
E55: 2022-10-01 | F55: PL | G55: 2213 | R55: 2014-08-01 | S55: 65303 | T55: 17956 | U55: 943 | V55: 11129 | W55: 2562 | X55: 17610 | Y55: 2583.028727
E56: 2022-11-01 | F56: PL | G56: 3324 | R56: 2014-09-01 | S56: 73636 | T56: 20030 | U56: 1121 | V56: 14188 | W56: 3069 | X56: 18363 | Y56: 2576.402023
E57: 2022-12-01 | F57: PL | G57: 2296 | R57: 2014-10-01 | S57: 79518 | T57: 21428 | U57: 1207 | V57: 15580 | W57: 3289 | X57: 19161 | Y57: 2589.861714
E58: 2023-01-01 | F58: PL | G58: 3373 | R58: 2014-11-01 | S58: 70993 | T58: 19049 | U58: 1000 | V58: 13162 | W58: 3222 | X58: 17385 | Y58: 2600.943091
E59: 2023-02-01 | F59: PL | G59: 3297 | R59: 2014-12-01 | S59: 63786 | T59: 19218 | U59: 1334 | V59: 12458 | W59: 3211 | X59: 16127 | Y59: 2602.176224
E60: 2023-03-01 | F60: PL | G60: 3568 | R60: 2015-01-01 | S60: 77212 | T60: 16556 | U60: 999 | V60: 12491 | W60: 3446 | X60: 17250 | Y60: 2606.966702
E61: 2023-04-01 | F61: PL | G61: 2734 | R61: 2015-02-01 | S61: 73611 | T61: 18889 | U61: 1009 | V61: 13694 | W61: 3618 | X61: 16828 | Y61: 2581.734944
E62: 2023-05-01 | F62: PL | G62: 3172 | R62: 2015-03-01 | S62: 80760 | T62: 20783 | U62: 1135 | V62: 15307 | W62: 4199 | X62: 19308 | Y62: 2606.281553
E63: 2023-06-01 | F63: PL | G63: 3452 | R63: 2015-04-01 | S63: 72131 | T63: 19807 | U63: 1039 | V63: 14602 | W63: 4147 | X63: 18062 | Y63: 2605.603912
E64: 2023-07-01 | F64: PL | G64: 3351 | R64: 2015-05-01 | S64: 68358 | T64: 16848 | U64: 882 | V64: 12705 | W64: 4038 | X64: 17453 | Y64: 2587.502464
E65: 2023-08-01 | F65: PL | G65: 3398 | R65: 2015-06-01 | S65: 70176 | T65: 18770 | U65: 1096 | V65: 14254 | W65: 5174 | X65: 19745 | Y65: 2576.67956
E66: 2023-09-01 | F66: PL | G66: 3141 | R66: 2015-07-01 | S66: 80276 | T66: 20368 | U66: 1034 | V66: 15874 | W66: 5289 | X66: 19705 | Y66: 2599.738663
E67: 2023-10-01 | F67: PL | G67: 3328 | R67: 2015-08-01 | S67: 67512 | T67: 17217 | U67: 922 | V67: 13968 | W67: 4628 | X67: 16670 | Y67: 2570.349691
E68: 2023-11-01 | F68: PL | G68: 3228 | R68: 2015-09-01 | S68: 72534 | T68: 18397 | U68: 1054 | V68: 14929 | W68: 4965 | X68: 17064 | Y68: 2578.391367
E69: 2023-12-01 | F69: PL | G69: 2020 | R69: 2015-10-01 | S69: 74685 | T69: 18162 | U69: 1457 | V69: 15147 | W69: 5291 | X69: 17302 | Y69: 2703.682213
E70: 2022-10-01 | F70: RTA | G70: 5049 | R70: 2015-11-01 | S70: 72511 | T70: 18096 | U70: 1121 | V70: 15377 | W70: 4928 | X70: 17071 | Y70: 2577.986938
E71: 2022-11-01 | F71: RTA | G71: 8336 | R71: 2015-12-01 | S71: 61982 | T71: 18031 | U71: 1071 | V71: 13981 | W71: 4874 | X71: 16206 | Y71: 2578.515736
E72: 2022-12-01 | F72: RTA | G72: 6137 | R72: 2016-01-01 | S72: 69529 | T72: 15017 | U72: 869 | V72: 12810 | W72: 4982 | X72: 16061 | Y72: 2613.652933
E73: 2023-01-01 | F73: RTA | G73: 7409 | R73: 2016-02-01 | S73: 71297 | T73: 17856 | U73: 1113 | V73: 15310 | W73: 5386 | X73: 16648 | Y73: 2598.833683
E74: 2023-02-01 | F74: RTA | G74: 7487 | R74: 2016-03-01 | S74: 69664 | T74: 17356 | U74: 1182 | V74: 16802 | W74: 5630 | X74: 17930 | Y74: 2626.017118
E75: 2023-03-01 | F75: RTA | G75: 7465 | R75: 2016-04-01 | S75: 70328 | T75: 17108 | U75: 1210 | V75: 13996 | W75: 5454 | X75: 17828 | Y75: 2657.785137
E76: 2023-04-01 | F76: RTA | G76: 6139 | R76: 2016-05-01 | S76: 64625 | T76: 17045 | U76: 1135 | V76: 13568 | W76: 5453 | X76: 17185 | Y76: 2651.016157
E77: 2023-05-01 | F77: RTA | G77: 6874 | R77: 2016-06-01 | S77: 68898 | T77: 17982 | U77: 1337 | V77: 14632 | W77: 6180 | X77: 18248 | Y77: 2678.561656
E78: 2023-06-01 | F78: RTA | G78: 7707 | R78: 2016-07-01 | S78: 56478 | T78: 14762 | U78: 1053 | V78: 11929 | W78: 5173 | X78: 16102 | Y78: 2689.532078
E79: 2023-07-01 | F79: RTA | G79: 7302 | R79: 2016-08-01 | S79: 67061 | T79: 12447 | U79: 718 | V79: 10517 | W79: 4463 | X79: 14663 | Y79: 2691.193559
E80: 2023-08-01 | F80: RTA | G80: 7477 | R80: 2016-09-01 | S80: 66198 | T80: 16545 | U80: 1161 | V80: 14064 | W80: 6189 | X80: 16274 | Y80: 2718.300609
E81: 2023-09-01 | F81: RTA | G81: 7027 | R81: 2016-10-01 | S81: 67121 | T81: 15788 | U81: 1075 | V81: 13713 | W81: 6026 | X81: 16012 | Y81: 2866.469693
E82: 2023-10-01 | F82: RTA | G82: 7854 | R82: 2016-11-01 | S82: 69748 | T82: 17288 | U82: 1191 | V82: 15104 | W82: 6191 | X82: 16750 | Y82: 2736.741515
E83: 2023-11-01 | F83: RTA | G83: 7769 | R83: 2016-12-01 | S83: 57123 | T83: 15636 | U83: 1001 | V83: 12727 | W83: 5278 | X83: 14043 | Y83: 2739.757932
E84: 2023-12-01 | F84: RTA | G84: 5624 | R84: 2017-01-01 | S84: 65085 | T84: 14979 | U84: 950 | V84: 12307 | W84: 5943 | X84: 15501 | Y84: 2756.305693
R85: 2017-02-01 | S85: 61420 | T85: 15146 | U85: 1276 | V85: 13038 | W85: 5725 | X85: 14681 | Y85: 2775.29768
R86: 2017-03-01 | S86: 67677 | T86: 16901 | U86: 1237 | V86: 17751 | W86: 6677 | X86: 17634 | Y86: 2781.651075
R87: 2017-04-01 | S87: 51890 | T87: 12534 | U87: 986 | V87: 12380 | W87: 5908 | X87: 13451 | Y87: 2804.941433
R88: 2017-05-01 | S88: 59933 | T88: 14513 | U88: 1036 | V88: 13501 | W88: 6371 | X88: 15949 | Y88: 2802.762874
A89: Note:The figure for claims exiting the Portal in January is 54% lower than for December 2020. The reason for this is that during December a claimant law firm were running the exit process on approximately 12,000 claims on their case management system which, in error, had not been exited from the Portal when settled. | R89: 2017-06-01 | S89: 60258 | T89: 14273 | U89: 1127 | V89: 14280 | W89: 6540 | X89: 16020 | Y89: 2780.168986
R90: 2017-07-01 | S90: 58486 | T90: 13459 | U90: 980 | V90: 13315 | W90: 6208 | X90: 14883 | Y90: 2816.968797
R91: 2017-08-01 | S91: 58922 | T91: 14398 | U91: 963 | V91: 14004 | W91: 6428 | X91: 14877 | Y91: 2802.716165
R92: 2017-09-01 | S92: 56910 | T92: 12920 | U92: 933 | V92: 12504 | W92: 6197 | X92: 14023 | Y92: 2789.773445
R93: 2017-10-01 | S93: 61785 | T93: 13796 | U93: 956 | V93: 14047 | W93: 6130 | X93: 14784 | Y93: 2795.822996
R94: 2017-11-01 | S94: 61460 | T94: 13122 | U94: 932 | V94: 13879 | W94: 6447 | X94: 14701 | Y94: 2794.400593
R95: 2017-12-01 | S95: 48898 | T95: 11623 | U95: 1026 | V95: 11329 | W95: 5170 | X95: 11229 | Y95: 2817.595655
R96: 2018-01-01 | S96: 64293 | T96: 12863 | U96: 991 | V96: 13327 | W96: 6362 | X96: 14246 | Y96: 2816.761038
R97: 2018-02-01 | S97: 57340 | T97: 12337 | U97: 958 | V97: 12799 | W97: 5933 | X97: 13236 | Y97: 2809.703436
R98: 2018-03-01 | S98: 58497 | T98: 12683 | U98: 1111 | V98: 13136 | W98: 6066 | X98: 14200 | Y98: 2823.95084
R99: 2018-04-01 | S99: 54654 | T99: 11912 | U99: 1153 | V99: 12751 | W99: 5971 | X99: 13564 | Y99: 2826.73491
R100: 2018-05-01 | S100: 59388 | T100: 12448 | U100: 1112 | V100: 12987 | W100: 6217 | X100: 14703 | Y100: 3081.427844
R101: 2018-06-01 | S101: 54618 | T101: 13928 | U101: 1249 | V101: 12895 | W101: 5926 | X101: 13687 | Y101: 2842.867002
R102: 2018-07-01 | S102: 60276 | T102: 12678 | U102: 1141 | V102: 13714 | W102: 6829 | X102: 14065 | Y102: 2844.582817
R103: 2018-08-01 | S103: 58321 | T103: 12535 | U103: 1070 | V103: 14239 | W103: 5999 | X103: 13486 | Y103: 2854.045599
R104: 2018-09-01 | S104: 54918 | T104: 10917 | U104: 884 | V104: 12123 | W104: 5765 | X104: 12989 | Y104: 2834.581672
R105: 2018-10-01 | S105: 65721 | T105: 12981 | U105: 1088 | V105: 15184 | W105: 6383 | X105: 14896 | Y105: 2866.759307
R106: 2018-11-01 | S106: 62328 | T106: 12214 | U106: 1072 | V106: 14361 | W106: 6309 | X106: 15047 | Y106: 2864.333488
R107: 2018-12-01 | S107: 47165 | T107: 10736 | U107: 1025 | V107: 12146 | W107: 4868 | X107: 11451 | Y107: 2874.137061
R108: 2019-01-01 | S108: 62424 | T108: 10965 | U108: 887 | V108: 14451 | W108: 6201 | X108: 14832 | Y108: 2851.332528
R109: 2019-02-01 | S109: 56832 | T109: 10923 | U109: 1068 | V109: 13607 | W109: 5324 | X109: 12913 | Y109: 2832.512205
R110: 2019-03-01 | S110: 58032 | T110: 11620 | U110: 1040 | V110: 13401 | W110: 6083 | X110: 14403 | Y110: 2826.171033
R111: 2019-04-01 | S111: 54723 | T111: 10602 | U111: 933 | V111: 13313 | W111: 5648 | X111: 14194 | Y111: 2811.171194
R112: 2019-05-01 | S112: 57900 | T112: 11198 | U112: 972 | V112: 13947 | W112: 5936 | X112: 14568 | Y112: 2816.665623
R113: 2019-06-01 | S113: 53653 | T113: 10733 | U113: 986 | V113: 13127 | W113: 5605 | X113: 13731 | Y113: 2830.216218
R114: 2019-07-01 | S114: 61054 | T114: 12359 | U114: 1151 | V114: 15534 | W114: 6697 | X114: 15284 | Y114: 2818.024845
R115: 2019-08-01 | S115: 54874 | T115: 11525 | U115: 1107 | V115: 14288 | W115: 5663 | X115: 13283 | Y115: 2824.772762
R116: 2019-09-01 | S116: 56733 | T116: 11272 | U116: 1112 | V116: 13840 | W116: 5703 | X116: 13407 | Y116: 2845.407688
R117: 2019-10-01 | S117: 62524 | T117: 11917 | U117: 1301 | V117: 15721 | W117: 5699 | X117: 14561 | Y117: 2820.701197
R118: 2019-11-01 | S118: 59559 | T118: 10749 | U118: 1051 | V118: 14884 | W118: 5362 | X118: 13522 | Y118: 2831.389
R119: 2019-12-01 | S119: 50791 | T119: 10850 | U119: 1145 | V119: 13349 | W119: 4741 | X119: 11731 | Y119: 2818.560024
R120: 2020-01-01 | S120: 60062 | T120: 10912 | U120: 998 | V120: 13480 | W120: 5166 | X120: 14051 | Y120: 2810.599304
R121: 2020-02-01 | S121: 55548 | T121: 10457 | U121: 1125 | V121: 14044 | W121: 4681 | X121: 12910 | Y121: 2818.530686
R122: 2020-03-01 | S122: 49387 | T122: 10953 | U122: 1124 | V122: 14964 | W122: 5469 | X122: 14999 | Y122: 2824.37249
R123: 2020-04-01 | S123: 24628 | T123: 7799 | U123: 1044 | V123: 8652 | W123: 4689 | X123: 13301 | Y123: 2851.398494
R124: 2020-05-01 | S124: 23081 | T124: 4854 | U124: 799 | V124: 6744 | W124: 4641 | X124: 10814 | Y124: 2903.051542
R125: 2020-06-01 | S125: 31196 | T125: 5736 | U125: 789 | V125: 8447 | W125: 5114 | X125: 10486 | Y125: 2896.16723
R126: 2020-07-01 | S126: 39333 | T126: 6891 | U126: 796 | V126: 10467 | W126: 4887 | X126: 10387 | Y126: 2911.730959
R127: 2020-08-01 | S127: 33922 | T127: 6560 | U127: 534 | V127: 8512 | W127: 3679 | X127: 7651 | Y127: 2860.658147
R128: 2020-09-01 | S128: 43018 | T128: 7707 | U128: 690 | V128: 10521 | W128: 4383 | X128: 8584 | Y128: 2915.720782
R129: 2020-10-01 | S129: 45723 | T129: 8593 | U129: 744 | V129: 12512 | W129: 3926 | X129: 9043 | Y129: 2901.881685
R130: 2020-11-01 | S130: 40610 | T130: 8015 | U130: 621 | V130: 11071 | W130: 3744 | X130: 8775 | Y130: 2897.147205
R131: 2020-12-01 | S131: 35480 | T131: 7200 | U131: 632 | V131: 23441 | W131: 3331 | X131: 7963 | Y131: 2916.711731
R132: 2021-01-01 | S132: 37948 | T132: 5980 | U132: 514 | V132: 10974 | W132: 3658 | X132: 8620 | Y132: 2897.29747
R133: 2021-02-01 | S133: 33533 | T133: 5957 | U133: 586 | V133: 12365 | W133: 3722 | X133: 8526 | Y133: 2887.359456
R134: 2021-03-01 | S134: 31614 | T134: 6574 | U134: 661 | V134: 11707 | W134: 4738 | X134: 10158 | Y134: 2925.876584
R135: 2021-04-01 | S135: 36996 | T135: 5830 | U135: 654 | V135: 10343 | W135: 4094 | X135: 7919 | Y135: 2923.172899
R136: 2021-05-01 | S136: 38009 | T136: 5755 | U136: 617 | V136: 10188 | W136: 3820 | X136: 7652 | Y136: 2952.912054
R137: 2021-06-01 | S137: 22650 | T137: 6955 | U137: 647 | V137: 9834 | W137: 4198 | X137: 8170 | Y137: 2979.756495
R138: 2021-07-01 | S138: 14981 | T138: 3835 | U138: 742 | V138: 6072 | W138: 3876 | X138: 7172 | Y138: 3031.368859
R139: 2021-08-01 | S139: 11388 | T139: 2445 | U139: 695 | V139: 4664 | W139: 3588 | X139: 6571 | Y139: 3044.84208
R140: 2021-09-01 | S140: 10692 | T140: 2376 | U140: 568 | V140: 4177 | W140: 3474 | X140: 6090 | Y140: 3144.47906
R141: 2021-10-01 | S141: 10160 | T141: 2214 | U141: 467 | V141: 3966 | W141: 3261 | X141: 4965 | Y141: 3195.454408
R142: 2021-11-01 | S142: 9900 | T142: 2021 | U142: 447 | V142: 3901 | W142: 3046 | X142: 4635 | Y142: 3427.810936
R143: 2021-12-01 | S143: 7548 | T143: 1809 | U143: 405 | V143: 2980 | W143: 2162 | X143: 3267 | Y143: 3573.468647
R144: 2022-01-01 | S144: 8827 | T144: 1409 | U144: 232 | V144: 2666 | W144: 1969 | X144: 2931 | Y144: 3682.643773
R145: 2022-02-01 | S145: 7747 | T145: 1714 | U145: 344 | V145: 2829 | W145: 1575 | X145: 2541 | Y145: 3852.337044
R146: 2022-03-01 | S146: 8287 | T146: 1646 | U146: 376 | V146: 3008 | W146: 1649 | X146: 2556 | Y146: 3982.043407
R147: 2022-04-01 | S147: 7332 | T147: 1380 | U147: 324 | V147: 2338 | W147: 1228 | X147: 1900 | Y147: 4077.485247
R148: 2022-05-01 | S148: 7916 | T148: 1614 | U148: 312 | V148: 2646 | W148: 1209 | X148: 1879 | Y148: 4166.929659
R149: 2022-06-01 | S149: 7309 | T149: 1495 | U149: 303 | V149: 2271 | W149: 1052 | X149: 1740 | Y149: 4309.212448
R150: 2022-07-01 | S150: 7438 | T150: 1642 | U150: 328 | V150: 2300 | W150: 1083 | X150: 1461 | Y150: 4624.211437
R151: 2022-08-01 | S151: 8099 | T151: 1748 | U151: 355 | V151: 2435 | W151: 1250 | X151: 1483 | Y151: 4307.001773
R152: 2022-09-01 | S152: 7636 | T152: 1760 | U152: 409 | V152: 2317 | W152: 1035 | X152: 1316 | Y152: 4533.912226
R153: 2022-10-01 | S153: 7622 | T153: 1611 | U153: 332 | V153: 2200 | W153: 1119 | X153: 1301 | Y153: 4603.578324
R154: 2022-11-01 | S154: 8327 | T154: 1755 | U154: 317 | V154: 2511 | W154: 1201 | X154: 1311 | Y154: 4794.955942
R155: 2022-12-01 | S155: 6163 | T155: 1586 | U155: 319 | V155: 1863 | W155: 853 | X155: 1070 | Y155: 5137.718551
R156: 2023-01-01 | S156: 6597 | T156: 1346 | U156: 311 | V156: 1933 | W156: 1014 | X156: 1184 | Y156: 5133.238792
R157: 2023-02-01 | S157: 6427 | T157: 1576 | U157: 381 | V157: 1871 | W157: 836 | X157: 1033 | Y157: 5079.499177
R158: 2023-03-01 | S158: 6748 | T158: 1677 | U158: 369 | V158: 1896 | W158: 913 | X158: 1217 | Y158: 4787.575595
R159: 2023-04-01 | S159: 5305 | T159: 1283 | U159: 229 | V159: 1832 | W159: 792 | X159: 963 | Y159: 5191.174849
R160: 2023-05-01 | S160: 5919 | T160: 1610 | U160: 326 | V160: 1750 | W160: 952 | X160: 1028 | Y160: 5281.335943
R161: 2023-06-01 | S161: 7550 | T161: 1825 | U161: 355 | V161: 1844 | W161: 841 | X161: 1224 | Y161: 4541.254338
R162: 2023-07-01 | S162: 6405 | T162: 1747 | U162: 295 | V162: 2280 | W162: 866 | X162: 1018 | Y162: 5534.711473
R163: 2023-08-01 | S163: 6345 | T163: 1934 | U163: 365 | V163: 2036 | W163: 793 | X163: 1013 | Y163: 5494.600009
R164: 2023-09-01 | S164: 5882 | T164: 1703 | U164: 313 | V164: 1643 | W164: 653 | X164: 748 | Y164: 5203.234131
R165: 2023-10-01 | S165: 6897 | T165: 1865 | U165: 346 | V165: 2055 | W165: 830 | X165: 963 | Y165: 5291.255835
R166: 2023-11-01 | S166: 7185 | T166: 1917 | U166: 353 | V166: 2018 | W166: 811 | X166: 1082 | Y166: 4985.95499
R167: 2023-12-01 | S167: 5624 | T167: 1523 | U167: 355 | V167: 1586 | W167: 673 | X167: 943 | Y167: 4781.216723

Sheet vRTADashboard (hidden)
B1: =SUBTOTAL(9,vRTADashboard[CNFs Sent]) -> 948034 | C1: =SUBTOTAL(9,vRTADashboard[CNFs left at Stage 1]) -> 90726 | D1: =SUBTOTAL(9,vRTADashboard[Stage 2 Exit]) -> 16047 | E1: =SUBTOTAL(9,vRTADashboard[Exit process]) -> 139679 | F1: =SUBTOTAL(9,vRTADashboard[Court Pack]) -> 70308 | G1: =SUBTOTAL(9,vRTADashboard[Settled claims]) -> 70504 | H1: =SUBTOTAL(9,vRTADashboard[General Damages]) -> 327202.1433
A2: Period | B2: CNFs Sent | C2: CNFs left at Stage 1 | D2: Stage 2 Exit | E2: Exit process | F2: Court Pack | G2: Settled claims | H2: General Damages | J2: Period | K2: Rolling 12 CNF Sent | L2: Rolling 12 CNF Left at Stage 1 | M2: Rolling 12 Stage 2 Exit | N2: Rolling 12 Exit Process | O2: Rolling 12 Court Pack | P2: Rolling 12 Settled Claims
A3: 2014-01-01 | B3: 1864 | C3: 0 | D3: 0 | E3: 0 | F3: 0 | G3: 5 | H3: 936 | J3: =vRTADashboard[[#This Row],[Period]] -> 2014-01-01
A4: 2014-02-01 | B4: 1618 | C4: 0 | D4: 0 | E4: 0 | F4: 0 | G4: 5 | H4: 1510 | J4: =vRTADashboard[[#This Row],[Period]] -> 2014-02-01
A5: 2014-03-01 | B5: 1828 | C5: 0 | D5: 0 | E5: 0 | F5: 0 | G5: 2 | H5: 1562.5 | J5: =vRTADashboard[[#This Row],[Period]] -> 2014-03-01
A6: 2014-04-01 | B6: 1605 | C6: 0 | D6: 0 | E6: 0 | F6: 0 | G6: 6 | H6: 1835.833333 | J6: =vRTADashboard[[#This Row],[Period]] -> 2014-04-01
A7: 2014-05-01 | B7: 1709 | C7: 0 | D7: 0 | E7: 0 | F7: 0 | G7: 8 | H7: 1262.35 | J7: =vRTADashboard[[#This Row],[Period]] -> 2014-05-01
A8: 2014-06-01 | B8: 1758 | C8: 0 | D8: 0 | E8: 0 | F8: 0 | G8: 7 | H8: 1041.564285 | J8: =vRTADashboard[[#This Row],[Period]] -> 2014-06-01
A9: 2014-07-01 | B9: 1967 | C9: 0 | D9: 0 | E9: 0 | F9: 0 | G9: 4 | H9: 1282.5 | J9: =vRTADashboard[[#This Row],[Period]] -> 2014-07-01
A10: 2014-08-01 | B10: 1913 | C10: 0 | D10: 0 | E10: 0 | F10: 0 | G10: 5 | H10: 2005.896 | J10: =vRTADashboard[[#This Row],[Period]] -> 2014-08-01
A11: 2014-09-01 | B11: 2124 | C11: 0 | D11: 0 | E11: 0 | F11: 0 | G11: 7 | H11: 1625.714285 | J11: =vRTADashboard[[#This Row],[Period]] -> 2014-09-01
A12: 2014-10-01 | B12: 2440 | C12: 0 | D12: 0 | E12: 0 | F12: 0 | G12: 10 | H12: 1710.5 | J12: =vRTADashboard[[#This Row],[Period]] -> 2014-10-01
A13: 2014-11-01 | B13: 2056 | C13: 0 | D13: 0 | E13: 0 | F13: 0 | G13: 7 | H13: 2266.981428 | J13: =vRTADashboard[[#This Row],[Period]] -> 2014-11-01
A14: 2014-12-01 | B14: 1621 | C14: 0 | D14: 0 | E14: 0 | F14: 0 | G14: 6 | H14: 1947.5 | J14: =vRTADashboard[[#This Row],[Period]] -> 2014-12-01 | K14: =SUM(B3:B14) -> 22503 | L14: 0 | M14: 0 | N14: 0 | O14: 0 | P14: 72
A15: 2015-01-01 | B15: 2023 | C15: 0 | D15: 0 | E15: 0 | F15: 0 | G15: 16 | H15: 1637.50125 | J15: =vRTADashboard[[#This Row],[Period]] -> 2015-01-01 | K15: =SUM(B4:B15) -> 22662 | L15: =SUM(C4:C15) -> 0 | M15: 0 | N15: 0 | O15: 0 | P15: 83
A16: 2015-02-01 | B16: 2017 | C16: 0 | D16: 0 | E16: 0 | F16: 0 | G16: 13 | H16: 1558.461538 | J16: =vRTADashboard[[#This Row],[Period]] -> 2015-02-01 | K16: 23061 | L16: =SUM(C5:C16) -> 0 | M16: 0 | N16: 0 | O16: 0 | P16: 91
A17: 2015-03-01 | B17: 2198 | C17: 0 | D17: 0 | E17: 0 | F17: 0 | G17: 15 | H17: 1676.666666 | J17: =vRTADashboard[[#This Row],[Period]] -> 2015-03-01 | K17: 23431 | L17: =SUM(C6:C17) -> 0 | M17: 0 | N17: 0 | O17: 0 | P17: 104
A18: 2015-04-01 | B18: 2139 | C18: 0 | D18: 0 | E18: 0 | F18: 0 | G18: 16 | H18: 1487.496875 | J18: =vRTADashboard[[#This Row],[Period]] -> 2015-04-01 | K18: 23965 | L18: =SUM(C7:C18) -> 0 | M18: 0 | N18: 0 | O18: 0 | P18: 114
A19: 2015-05-01 | B19: 2017 | C19: 0 | D19: 0 | E19: 0 | F19: 0 | G19: 9 | H19: 1701.666666 | J19: =vRTADashboard[[#This Row],[Period]] -> 2015-05-01 | K19: 24273 | L19: =SUM(C8:C19) -> 0 | M19: 0 | N19: 0 | O19: 0 | P19: 115
A20: 2015-06-01 | B20: 2061 | C20: 0 | D20: 0 | E20: 0 | F20: 0 | G20: 22 | H20: 1471.418181 | J20: =vRTADashboard[[#This Row],[Period]] -> 2015-06-01 | K20: 24576 | L20: =SUM(C9:C20) -> 0 | M20: 0 | N20: 0 | O20: 0 | P20: 130
A21: 2015-07-01 | B21: 2356 | C21: 0 | D21: 0 | E21: 0 | F21: 0 | G21: 14 | H21: 1860.714285 | J21: =vRTADashboard[[#This Row],[Period]] -> 2015-07-01 | K21: 24965 | L21: =SUM(C10:C21) -> 0 | M21: 0 | N21: 0 | O21: 0 | P21: 140
A22: 2015-08-01 | B22: 2243 | C22: 0 | D22: 0 | E22: 0 | F22: 0 | G22: 21 | H22: 1497.619047 | J22: =vRTADashboard[[#This Row],[Period]] -> 2015-08-01 | K22: 25295 | L22: =SUM(C11:C22) -> 0 | M22: 0 | N22: 0 | O22: 0 | P22: 156
A23: 2015-09-01 | B23: 2385 | C23: 0 | D23: 0 | E23: 0 | F23: 0 | G23: 12 | H23: 1804.255 | J23: =vRTADashboard[[#This Row],[Period]] -> 2015-09-01 | K23: 25556 | L23: =SUM(C12:C23) -> 0 | M23: 0 | N23: 0 | O23: 0 | P23: 161
A24: 2015-10-01 | B24: 2222 | C24: 0 | D24: 0 | E24: 0 | F24: 0 | G24: 9 | H24: 1525.123333 | J24: =vRTADashboard[[#This Row],[Period]] -> 2015-10-01 | K24: 25338 | L24: =SUM(C13:C24) -> 0 | M24: 0 | N24: 0 | O24: 0 | P24: 160
A25: 2015-11-01 | B25: 2070 | C25: 0 | D25: 0 | E25: 0 | F25: 0 | G25: 15 | H25: 2243.666666 | J25: =vRTADashboard[[#This Row],[Period]] -> 2015-11-01 | K25: 25352 | L25: =SUM(C14:C25) -> 0 | M25: 0 | N25: 0 | O25: 0 | P25: 168
A26: 2015-12-01 | B26: 1612 | C26: 0 | D26: 0 | E26: 0 | F26: 0 | G26: 9 | H26: 1821.501111 | J26: =vRTADashboard[[#This Row],[Period]] -> 2015-12-01 | K26: 25343 | L26: =SUM(C15:C26) -> 0 | M26: 0 | N26: 0 | O26: 0 | P26: 171
A27: 2016-01-01 | B27: 1989 | C27: 0 | D27: 0 | E27: 0 | F27: 0 | G27: 17 | H27: 1553.852941 | J27: =vRTADashboard[[#This Row],[Period]] -> 2016-01-01 | K27: 25309 | L27: =SUM(C16:C27) -> 0 | M27: 0 | N27: 0 | O27: 0 | P27: 172
A28: 2016-02-01 | B28: 2045 | C28: 0 | D28: 0 | E28: 0 | F28: 0 | G28: 13 | H28: 1579.107692 | J28: =vRTADashboard[[#This Row],[Period]] -> 2016-02-01 | K28: 25337 | L28: =SUM(C17:C28) -> 0 | M28: 0 | N28: 0 | O28: 0 | P28: 172
A29: 2016-03-01 | B29: 2064 | C29: 0 | D29: 0 | E29: 0 | F29: 0 | G29: 17 | H29: 1718.662352 | J29: =vRTADashboard[[#This Row],[Period]] -> 2016-03-01 | K29: 25203 | L29: =SUM(C18:C29) -> 0 | M29: 0 | N29: 0 | O29: 0 | P29: 174
A30: 2016-04-01 | B30: 2192 | C30: 0 | D30: 0 | E30: 0 | F30: 0 | G30: 18 | H30: 1950.222222 | J30: =vRTADashboard[[#This Row],[Period]] -> 2016-04-01 | K30: 25256 | L30: =SUM(C19:C30) -> 0 | M30: 0 | N30: 0 | O30: 0 | P30: 176
A31: 2016-05-01 | B31: 2084 | C31: 0 | D31: 0 | E31: 0 | F31: 0 | G31: 19 | H31: 1207.894736 | J31: =vRTADashboard[[#This Row],[Period]] -> 2016-05-01 | K31: 25323 | L31: =SUM(C20:C31) -> 0 | M31: 0 | N31: 0 | O31: 0 | P31: 186
A32: 2016-06-01 | B32: 2111 | C32: 0 | D32: 0 | E32: 0 | F32: 0 | G32: 24 | H32: 1380.083333 | J32: =vRTADashboard[[#This Row],[Period]] -> 2016-06-01 | K32: 25373 | L32: =SUM(C21:C32) -> 0 | M32: 0 | N32: 0 | O32: 0 | P32: 188
A33: 2016-07-01 | B33: 1963 | C33: 0 | D33: 0 | E33: 0 | F33: 0 | G33: 26 | H33: 2360.038461 | J33: =vRTADashboard[[#This Row],[Period]] -> 2016-07-01 | K33: 24980 | L33: =SUM(C22:C33) -> 0 | M33: 0 | N33: 0 | O33: 0 | P33: 200
A34: 2016-08-01 | B34: 2071 | C34: 0 | D34: 0 | E34: 0 | F34: 0 | G34: 23 | H34: 1338.483478 | J34: =vRTADashboard[[#This Row],[Period]] -> 2016-08-01 | K34: 24808 | L34: =SUM(C23:C34) -> 0 | M34: 0 | N34: 0 | O34: 0 | P34: 202
A35: 2016-09-01 | B35: 2119 | C35: 0 | D35: 0 | E35: 0 | F35: 0 | G35: 27 | H35: 1443.777777 | J35: =vRTADashboard[[#This Row],[Period]] -> 2016-09-01 | K35: 24542 | L35: =SUM(C24:C35) -> 0 | M35: 0 | N35: 0 | O35: 0 | P35: 217
A36: 2016-10-01 | B36: 2846 | C36: 0 | D36: 0 | E36: 0 | F36: 0 | G36: 15 | H36: 1594 | J36: =vRTADashboard[[#This Row],[Period]] -> 2016-10-01 | K36: 25166 | L36: =SUM(C25:C36) -> 0 | M36: 0 | N36: 0 | O36: 0 | P36: 223
A37: 2016-11-01 | B37: 5587 | C37: 0 | D37: 0 | E37: 0 | F37: 0 | G37: 26 | H37: 1356.461538 | J37: =vRTADashboard[[#This Row],[Period]] -> 2016-11-01 | K37: 28683 | L37: =SUM(C26:C37) -> 0 | M37: 0 | N37: 0 | O37: 0 | P37: 234
A38: 2016-12-01 | B38: 6604 | C38: 0 | D38: 0 | E38: 0 | F38: 0 | G38: 16 | H38: 1941.49375 | J38: =vRTADashboard[[#This Row],[Period]] -> 2016-12-01 | K38: 33675 | L38: =SUM(C27:C38) -> 0 | M38: 0 | N38: 0 | O38: 0 | P38: 241
A39: 2017-01-01 | B39: 7667 | C39: 0 | D39: 0 | E39: 0 | F39: 0 | G39: 14 | H39: 1983.730714 | J39: =vRTADashboard[[#This Row],[Period]] -> 2017-01-01 | K39: 39353 | L39: =SUM(C28:C39) -> 0 | M39: 0 | N39: 0 | O39: 0 | P39: 238
A40: 2017-02-01 | B40: 7255 | C40: 0 | D40: 0 | E40: 0 | F40: 0 | G40: 13 | H40: 984.615384 | J40: =vRTADashboard[[#This Row],[Period]] -> 2017-02-01 | K40: 44563 | L40: =SUM(C29:C40) -> 0 | M40: 0 | N40: 0 | O40: 0 | P40: 238
A41: 2017-03-01 | B41: 8228 | C41: 0 | D41: 0 | E41: 0 | F41: 0 | G41: 23 | H41: 1099.41826 | J41: =vRTADashboard[[#This Row],[Period]] -> 2017-03-01 | K41: 50727 | L41: =SUM(C30:C41) -> 0 | M41: 0 | N41: 0 | O41: 0 | P41: 244
A42: 2017-04-01 | B42: 6364 | C42: 0 | D42: 0 | E42: 0 | F42: 0 | G42: 17 | H42: 2015.713529 | J42: =vRTADashboard[[#This Row],[Period]] -> 2017-04-01 | K42: 54899 | L42: =SUM(C31:C42) -> 0 | M42: 0 | N42: 0 | O42: 0 | P42: 243
A43: 2017-05-01 | B43: 7033 | C43: 0 | D43: 0 | E43: 0 | F43: 0 | G43: 14 | H43: 2220.357142 | J43: =vRTADashboard[[#This Row],[Period]] -> 2017-05-01 | K43: 59848 | L43: =SUM(C32:C43) -> 0 | M43: 0 | N43: 0 | O43: 0 | P43: 238
A44: 2017-06-01 | B44: 7213 | C44: 0 | D44: 0 | E44: 0 | F44: 0 | G44: 25 | H44: 1654.6 | J44: =vRTADashboard[[#This Row],[Period]] -> 2017-06-01 | K44: 64950 | L44: =SUM(C33:C44) -> 0 | M44: 0 | N44: 0 | O44: 0 | P44: 239
A45: 2017-07-01 | B45: 6662 | C45: 0 | D45: 0 | E45: 0 | F45: 0 | G45: 22 | H45: 1200 | J45: =vRTADashboard[[#This Row],[Period]] -> 2017-07-01 | K45: 69649 | L45: =SUM(C34:C45) -> 0 | M45: 0 | N45: 0 | O45: 0 | P45: 235
A46: 2017-08-01 | B46: 6990 | C46: 0 | D46: 0 | E46: 0 | F46: 0 | G46: 14 | H46: 1082.142857 | J46: =vRTADashboard[[#This Row],[Period]] -> 2017-08-01 | K46: 74568 | L46: =SUM(C35:C46) -> 0 | M46: 0 | N46: 0 | O46: 0 | P46: 226
A47: 2017-09-01 | B47: 6665 | C47: 0 | D47: 0 | E47: 0 | F47: 0 | G47: 23 | H47: 1084.782608 | J47: =vRTADashboard[[#This Row],[Period]] -> 2017-09-01 | K47: 79114 | L47: =SUM(C36:C47) -> 0 | M47: 0 | N47: 0 | O47: 0 | P47: 222
A48: 2017-10-01 | B48: 7477 | C48: 0 | D48: 0 | E48: 0 | F48: 0 | G48: 23 | H48: 2194.130434 | J48: =vRTADashboard[[#This Row],[Period]] -> 2017-10-01 | K48: 83745 | L48: =SUM(C37:C48) -> 0 | M48: 0 | N48: 0 | O48: 0 | P48: 230
A49: 2017-11-01 | B49: 7577 | C49: 0 | D49: 0 | E49: 0 | F49: 0 | G49: 26 | H49: 1325.954615 | J49: =vRTADashboard[[#This Row],[Period]] -> 2017-11-01 | K49: 85735 | L49: =SUM(C38:C49) -> 0 | M49: 0 | N49: 0 | O49: 0 | P49: 230
A50: 2017-12-01 | B50: 5677 | C50: 0 | D50: 0 | E50: 0 | F50: 0 | G50: 13 | H50: 1600.961538 | J50: =vRTADashboard[[#This Row],[Period]] -> 2017-12-01 | K50: 84808 | L50: =SUM(C39:C50) -> 0 | M50: 0 | N50: 0 | O50: 0 | P50: 227
A51: 2018-01-01 | B51: 7909 | C51: 0 | D51: 0 | E51: 0 | F51: 0 | G51: 19 | H51: 1992.413157 | J51: =vRTADashboard[[#This Row],[Period]] -> 2018-01-01 | K51: 85050 | L51: =SUM(C40:C51) -> 0 | M51: 0 | N51: 0 | O51: 0 | P51: 232
A52: 2018-02-01 | B52: 7319 | C52: 0 | D52: 0 | E52: 0 | F52: 0 | G52: 25 | H52: 1782.3208 | J52: =vRTADashboard[[#This Row],[Period]] -> 2018-02-01 | K52: 85114 | L52: =SUM(C41:C52) -> 0 | M52: 0 | N52: 0 | O52: 0 | P52: 244
A53: 2018-03-01 | B53: 7077 | C53: 0 | D53: 0 | E53: 0 | F53: 0 | G53: 12 | H53: 1658.333333 | J53: =vRTADashboard[[#This Row],[Period]] -> 2018-03-01 | K53: 83963 | L53: =SUM(C42:C53) -> 0 | M53: 0 | N53: 0 | O53: 0 | P53: 233
A54: 2018-04-01 | B54: 6969 | C54: 0 | D54: 0 | E54: 0 | F54: 0 | G54: 24 | H54: 1452.5 | J54: =vRTADashboard[[#This Row],[Period]] -> 2018-04-01 | K54: 84568 | L54: =SUM(C43:C54) -> 0 | M54: 0 | N54: 0 | O54: 0 | P54: 240
A55: 2018-05-01 | B55: 7539 | C55: 0 | D55: 0 | E55: 0 | F55: 0 | G55: 23 | H55: 1375 | J55: =vRTADashboard[[#This Row],[Period]] -> 2018-05-01 | K55: 85074 | L55: =SUM(C44:C55) -> 0 | M55: 0 | N55: 0 | O55: 0 | P55: 249
A56: 2018-06-01 | B56: 7100 | C56: 0 | D56: 0 | E56: 0 | F56: 0 | G56: 19 | H56: 1304.473684 | J56: =vRTADashboard[[#This Row],[Period]] -> 2018-06-01 | K56: 84961 | L56: =SUM(C45:C56) -> 0 | M56: 0 | N56: 0 | O56: 0 | P56: 243
A57: 2018-07-01 | B57: 7973 | C57: 0 | D57: 0 | E57: 0 | F57: 0 | G57: 27 | H57: 1515.162962 | J57: =vRTADashboard[[#This Row],[Period]] -> 2018-07-01 | K57: 86272 | L57: =SUM(C46:C57) -> 0 | M57: 0 | N57: 0 | O57: 0 | P57: 248
A58: 2018-08-01 | B58: 7859 | C58: 0 | D58: 0 | E58: 0 | F58: 0 | G58: 21 | H58: 2083.669523 | J58: =vRTADashboard[[#This Row],[Period]] -> 2018-08-01 | K58: 87141 | L58: =SUM(C47:C58) -> 0 | M58: 0 | N58: 0 | O58: 0 | P58: 255
A59: 2018-09-01 | B59: 7709 | C59: 0 | D59: 0 | E59: 0 | F59: 0 | G59: 12 | H59: 2067.5 | J59: =vRTADashboard[[#This Row],[Period]] -> 2018-09-01 | K59: 88185 | L59: =SUM(C48:C59) -> 0 | M59: 0 | N59: 0 | O59: 0 | P59: 244
A60: 2018-10-01 | B60: 8844 | C60: 0 | D60: 0 | E60: 0 | F60: 0 | G60: 39 | H60: 1782.134358 | J60: =vRTADashboard[[#This Row],[Period]] -> 2018-10-01 | K60: 89552 | L60: =SUM(C49:C60) -> 0 | M60: 0 | N60: 0 | O60: 0 | P60: 260
A61: 2018-11-01 | B61: 9080 | C61: 0 | D61: 0 | E61: 0 | F61: 0 | G61: 27 | H61: 1979.357407 | J61: =vRTADashboard[[#This Row],[Period]] -> 2018-11-01 | K61: 91055 | L61: =SUM(C50:C61) -> 0 | M61: 0 | N61: 0 | O61: 0 | P61: 261
A62: 2018-12-01 | B62: 6803 | C62: 0 | D62: 0 | E62: 0 | F62: 0 | G62: 21 | H62: 2063.095238 | J62: =vRTADashboard[[#This Row],[Period]] -> 2018-12-01 | K62: 92181 | L62: =SUM(C51:C62) -> 0 | M62: 0 | N62: 0 | O62: 0 | P62: 269
A63: 2019-01-01 | B63: 9518 | C63: 0 | D63: 0 | E63: 0 | F63: 0 | G63: 28 | H63: 2196.142857 | J63: =vRTADashboard[[#This Row],[Period]] -> 2019-01-01 | K63: 93790 | L63: =SUM(C52:C63) -> 0 | M63: 0 | N63: 0 | O63: 0 | P63: 278
A64: 2019-02-01 | B64: 9055 | C64: 0 | D64: 0 | E64: 0 | F64: 0 | G64: 20 | H64: 1646.75 | J64: =vRTADashboard[[#This Row],[Period]] -> 2019-02-01 | K64: 95526 | L64: =SUM(C53:C64) -> 0 | M64: 0 | N64: 0 | O64: 0 | P64: 273
A65: 2019-03-01 | B65: 9869 | C65: 0 | D65: 0 | E65: 0 | F65: 0 | G65: 39 | H65: 2069.230769 | J65: =vRTADashboard[[#This Row],[Period]] -> 2019-03-01 | K65: 98318 | L65: =SUM(C54:C65) -> 0 | M65: 0 | N65: 0 | O65: 0 | P65: 300
A66: 2019-04-01 | B66: 9716 | C66: 0 | D66: 0 | E66: 0 | F66: 0 | G66: 25 | H66: 2334.3312 | J66: =vRTADashboard[[#This Row],[Period]] -> 2019-04-01 | K66: 101065 | L66: =SUM(C55:C66) -> 0 | M66: 0 | N66: 0 | O66: 0 | P66: 301
A67: 2019-05-01 | B67: 10705 | C67: 0 | D67: 0 | E67: 0 | F67: 0 | G67: 19 | H67: 1710.263157 | J67: =vRTADashboard[[#This Row],[Period]] -> 2019-05-01 | K67: 104231 | L67: =SUM(C56:C67) -> 0 | M67: 0 | N67: 0 | O67: 0 | P67: 297
A68: 2019-06-01 | B68: 10439 | C68: 0 | D68: 0 | E68: 0 | F68: 0 | G68: 23 | H68: 2332.675652 | J68: =vRTADashboard[[#This Row],[Period]] -> 2019-06-01 | K68: 107570 | L68: =SUM(C57:C68) -> 0 | M68: 0 | N68: 0 | O68: 0 | P68: 301
A69: 2019-07-01 | B69: 12274 | C69: 0 | D69: 0 | E69: 1 | F69: 0 | G69: 30 | H69: 1648.033333 | J69: =vRTADashboard[[#This Row],[Period]] -> 2019-07-01 | K69: 111871 | L69: =SUM(C58:C69) -> 0 | M69: 0 | N69: 1 | O69: 0 | P69: 304
A70: 2019-08-01 | B70: 11116 | C70: 0 | D70: 0 | E70: 0 | F70: 0 | G70: 21 | H70: 2311.124761 | J70: =vRTADashboard[[#This Row],[Period]] -> 2019-08-01 | K70: 115128 | L70: =SUM(C59:C70) -> 0 | M70: 0 | N70: 1 | O70: 0 | P70: 304
A71: 2019-09-01 | B71: 16195 | C71: 1 | D71: 0 | E71: 136 | F71: 56 | G71: 65 | H71: 2905.244615 | J71: =vRTADashboard[[#This Row],[Period]] -> 2019-09-01 | K71: 123614 | L71: =SUM(C60:C71) -> 1 | M71: 0 | N71: 137 | O71: 56 | P71: 357
A72: 2019-10-01 | B72: 21191 | C72: 2698 | D72: 362 | E72: 4204 | F72: 1677 | G72: 917 | H72: 2914.54687 | J72: =vRTADashboard[[#This Row],[Period]] -> 2019-10-01 | K72: 135961 | L72: =SUM(C61:C72) -> 2699 | M72: 362 | N72: 4341 | O72: 1733 | P72: 1235
A73: 2019-11-01 | B73: 20256 | C73: 2630 | D73: 300 | E73: 4279 | F73: 1615 | G73: 904 | H73: 2900.640431 | J73: =vRTADashboard[[#This Row],[Period]] -> 2019-11-01 | K73: 147137 | L73: =SUM(C62:C73) -> 5329 | M73: 662 | N73: 8620 | O73: 3348 | P73: 2112
A74: 2019-12-01 | B74: 16973 | C74: 2662 | D74: 348 | E74: 3648 | F74: 1589 | G74: 881 | H74: 2942.444653 | J74: =vRTADashboard[[#This Row],[Period]] -> 2019-12-01 | K74: 157307 | L74: =SUM(C63:C74) -> 7991 | M74: 1010 | N74: 12268 | O74: 4937 | P74: 2972
A75: 2020-01-01 | B75: 21074 | C75: 2387 | D75: 317 | E75: 3555 | F75: 1590 | G75: 1121 | H75: 2985.301373 | J75: =vRTADashboard[[#This Row],[Period]] -> 2020-01-01 | K75: 168863 | L75: =SUM(C64:C75) -> 10378 | M75: 1327 | N75: 15823 | O75: 6527 | P75: 4065
A76: 2020-02-01 | B76: 20605 | C76: 2547 | D76: 384 | E76: 4091 | F76: 1517 | G76: 1116 | H76: 2879.131523 | J76: =vRTADashboard[[#This Row],[Period]] -> 2020-02-01 | K76: 180413 | L76: =SUM(C65:C76) -> 12925 | M76: 1711 | N76: 19914 | O76: 8044 | P76: 5161
A77: 2020-03-01 | B77: 18651 | C77: 2842 | D77: 368 | E77: 4254 | F77: 1818 | G77: 1171 | H77: 2921.93093 | J77: =vRTADashboard[[#This Row],[Period]] -> 2020-03-01 | K77: 189195 | L77: =SUM(C66:C77) -> 15767 | M77: 2079 | N77: 24168 | O77: 9862 | P77: 6293
A78: 2020-04-01 | B78: 9333 | C78: 1952 | D78: 335 | E78: 2402 | F78: 1556 | G78: 1199 | H78: 2994.992351 | J78: =vRTADashboard[[#This Row],[Period]] -> 2020-04-01 | K78: 188812 | L78: =SUM(C67:C78) -> 17719 | M78: 2414 | N78: 26570 | O78: 11418 | P78: 7467
A79: 2020-05-01 | B79: 8940 | C79: 1310 | D79: 273 | E79: 1922 | F79: 1419 | G79: 903 | H79: 3000.10423 | J79: =vRTADashboard[[#This Row],[Period]] -> 2020-05-01 | K79: =SUM(B68:B79) -> 187047 | L79: =SUM(C68:C79) -> 19029 | M79: 2687 | N79: 28492 | O79: 12837 | P79: 8351
A80: 2020-06-01 | B80: 12873 | C80: 1642 | D80: 243 | E80: 2630 | F80: 1739 | G80: 877 | H80: 3108.356556 | J80: =vRTADashboard[[#This Row],[Period]] -> 2020-06-01 | K80: 189481 | L80: =SUM(C69:C80) -> 20671 | M80: 2930 | N80: 31122 | O80: 14576 | P80: 9205
A81: 2020-07-01 | B81: 15823 | C81: 1860 | D81: 297 | E81: 3309 | F81: 1736 | G81: 821 | H81: 3172.49749 | J81: =vRTADashboard[[#This Row],[Period]] -> 2020-07-01 | K81: 193030 | L81: =SUM(C70:C81) -> 22531 | M81: 3227 | N81: 34430 | O81: 16312 | P81: 9996
A82: 2020-08-01 | B82: 15540 | C82: 1805 | D82: 201 | E82: 2684 | F82: 1435 | G82: 642 | H82: 2919.032741 | J82: =vRTADashboard[[#This Row],[Period]] -> 2020-08-01 | K82: 197454 | L82: =SUM(C71:C82) -> 24336 | M82: 3428 | N82: 37114 | O82: 17747 | P82: 10617
A83: 2020-09-01 | B83: 18584 | C83: 2014 | D83: 233 | E83: 3247 | F83: 1517 | G83: 814 | H83: 3002.460823 | J83: =vRTADashboard[[#This Row],[Period]] -> 2020-09-01 | K83: 199843 | L83: =SUM(C72:C83) -> 26349 | M83: 3661 | N83: 40225 | O83: 19208 | P83: 11366
A84: 2020-10-01 | B84: 18908 | C84: 2209 | D84: 234 | E84: 3560 | F84: 1285 | G84: 833 | H84: 2991.850948 | J84: =vRTADashboard[[#This Row],[Period]] -> 2020-10-01 | K84: 197560 | L84: =SUM(C73:C84) -> 25860 | M84: 3533 | N84: 39581 | O84: 18816 | P84: 11282
A85: 2020-11-01 | B85: 17676 | C85: 1908 | D85: 253 | E85: 3192 | F85: 1217 | G85: 978 | H85: 3074.725347 | J85: =vRTADashboard[[#This Row],[Period]] -> 2020-11-01 | K85: 194980 | L85: =SUM(C74:C85) -> 25138 | M85: 3486 | N85: 38494 | O85: 18418 | P85: 11356
A86: 2020-12-01 | B86: 15419 | C86: 1687 | D86: 258 | E86: 6706 | F86: 1125 | G86: 844 | H86: 3016.060983 | J86: =vRTADashboard[[#This Row],[Period]] -> 2020-12-01 | K86: 193426 | L86: =SUM(C75:C86) -> 24163 | M86: 3396 | N86: 41552 | O86: 17954 | P86: 11319
A87: 2021-01-01 | B87: 16880 | C87: 1384 | D87: 211 | E87: 3118 | F87: 1239 | G87: 836 | H87: 3052.941004 | J87: =vRTADashboard[[#This Row],[Period]] -> 2021-01-01 | K87: 189232 | L87: =SUM(C76:C87) -> 23160 | M87: 3290 | N87: 41115 | O87: 17603 | P87: 11034
A88: 2021-02-01 | B88: 15019 | C88: 1380 | D88: 232 | E88: 3432 | F88: 1302 | G88: 990 | H88: 3126.169101 | J88: =vRTADashboard[[#This Row],[Period]] -> 2021-02-01 | K88: 183646 | L88: =SUM(C77:C88) -> 21993 | M88: 3138 | N88: 40456 | O88: 17388 | P88: 10908
A89: 2021-03-01 | B89: 18941 | C89: 1644 | D89: 273 | E89: 3179 | F89: 1802 | G89: 1047 | H89: 3157.237669 | J89: =vRTADashboard[[#This Row],[Period]] -> 2021-03-01 | K89: 183936 | L89: =SUM(C78:C89) -> 20795 | M89: 3043 | N89: 39381 | O89: 17372 | P89: 10784
A90: 2021-04-01 | B90: 19145 | C90: 1623 | D90: 232 | E90: 2808 | F90: 1556 | G90: 836 | H90: 3205.331184 | J90: =vRTADashboard[[#This Row],[Period]] -> 2021-04-01 | K90: 193748 | L90: =SUM(C79:C90) -> 20466 | M90: 2940 | N90: 39787 | O90: 17372 | P90: 10421
A91: 2021-05-01 | B91: 21110 | C91: 1378 | D91: 235 | E91: 2732 | F91: 1460 | G91: 803 | H91: 3030.56792 | J91: =vRTADashboard[[#This Row],[Period]] -> 2021-05-01 | K91: 205918 | L91: =SUM(C80:C91) -> 20534 | M91: 2902 | N91: 40597 | O91: 17413 | P91: 10321
A92: 2021-06-01 | B92: 14989 | C92: 1817 | D92: 268 | E92: 2836 | F92: 1603 | G92: 907 | H92: 3215.547629 | J92: =vRTADashboard[[#This Row],[Period]] -> 2021-06-01 | K92: 208034 | L92: =SUM(C81:C92) -> 20709 | M92: 2927 | N92: 40803 | O92: 17277 | P92: 10351
A93: 2021-07-01 | B93: 8940 | C93: 1024 | D93: 306 | E93: 1933 | F93: 1483 | G93: 725 | H93: 3476.362979 | J93: =vRTADashboard[[#This Row],[Period]] -> 2021-07-01 | K93: 201151 | L93: =SUM(C82:C93) -> 19873 | M93: 2936 | N93: 39427 | O93: 17024 | P93: 10255
A94: 2021-08-01 | B94: 7157 | C94: 691 | D94: 287 | E94: 1422 | F94: 1430 | G94: 670 | H94: 3566.475208 | J94: =vRTADashboard[[#This Row],[Period]] -> 2021-08-01 | K94: 192768 | L94: =SUM(C83:C94) -> 18759 | M94: 3022 | N94: 38165 | O94: 17019 | P94: 10283
A95: 2021-09-01 | B95: 10346 | C95: 1189 | D95: 301 | E95: 2150 | F95: 2050 | G95: 2211 | H95: 3696.552243 | J95: =vRTADashboard[[#This Row],[Period]] -> 2021-09-01 | K95: 184530 | L95: =SUM(C84:C95) -> 17934 | M95: 3090 | N95: 37068 | O95: 17552 | P95: 11680
A96: 2021-10-01 | B96: 10117 | C96: 2286 | D96: 470 | E96: 3946 | F96: 3272 | G96: 5031 | H96: 3585.762754 | J96: =vRTADashboard[[#This Row],[Period]] -> 2021-10-01 | K96: 175739 | L96: =SUM(C85:C96) -> 18011 | M96: 3326 | N96: 37454 | O96: 19539 | P96: 15878
A97: 2021-11-01 | B97: 9888 | C97: 2113 | D97: 449 | E97: 3877 | F97: 3059 | G97: 4724 | H97: 3891.775211 | J97: =vRTADashboard[[#This Row],[Period]] -> 2021-11-01 | K97: 167951 | L97: =SUM(C86:C97) -> 18216 | M97: 3522 | N97: 38139 | O97: 21381 | P97: 19624
A98: 2021-12-01 | B98: 7745 | C98: 1887 | D98: 410 | E98: 2983 | F98: 2136 | G98: 3329 | H98: 4051.866707 | J98: =vRTADashboard[[#This Row],[Period]] -> 2021-12-01 | K98: 160277 | L98: =SUM(C87:C98) -> 18416 | M98: 3674 | N98: 34416 | O98: 22392 | P98: 22109
A99: 2022-01-01 | B99: 8780 | C99: 1438 | D99: 234 | E99: 2604 | F99: 1930 | G99: 2927 | H99: 4137.70645 | J99: =vRTADashboard[[#This Row],[Period]] -> 2022-01-01 | K99: 152177 | L99: =SUM(C88:C99) -> 18470 | M99: 3697 | N99: 33902 | O99: 23083 | P99: 24200
A100: 2022-02-01 | B100: 7904 | C100: 1704 | D100: 340 | E100: 2750 | F100: 1528 | G100: 2609 | H100: 4193.908627 | J100: =vRTADashboard[[#This Row],[Period]] -> 2022-02-01 | K100: 145062 | L100: =SUM(C89:C100) -> 18794 | M100: 3805 | N100: 33220 | O100: 23309 | P100: 25819
A101: 2022-03-01 | B101: 8077 | C101: 1443 | D101: 324 | E101: 2536 | F101: 1415 | G101: 2196 | H101: 4439.193911 | J101: =vRTADashboard[[#This Row],[Period]] -> 2022-03-01 | K101: 134198 | L101: =SUM(C90:C101) -> 18593 | M101: 3856 | N101: 32577 | O101: 22922 | P101: 26968
A102: 2022-04-01 | B102: 7275 | C102: 1425 | D102: 328 | E102: 2345 | F102: 1232 | G102: 1955 | H102: 4659.951268 | J102: =vRTADashboard[[#This Row],[Period]] -> 2022-04-01 | K102: 122328 | L102: =SUM(C91:C102) -> 18395 | M102: 3952 | N102: 32114 | O102: 22598 | P102: 28087
A103: 2022-05-01 | B103: 7907 | C103: 1664 | D103: 315 | E103: 2433 | F103: 1222 | G103: 1925 | H103: 4746.520212 | J103: =vRTADashboard[[#This Row],[Period]] -> 2022-05-01 | K103: 109125 | L103: =SUM(C92:C103) -> 18681 | M103: 4032 | N103: 31815 | O103: 22360 | P103: 29209
A104: 2022-06-01 | B104: 7289 | C104: 1574 | D104: 309 | E104: 2140 | F104: 1059 | G104: 1787 | H104: 4825.570257 | J104: =vRTADashboard[[#This Row],[Period]] -> 2022-06-01 | K104: 101425 | L104: =SUM(C93:C104) -> 18438 | M104: 4073 | N104: 31119 | O104: 21816 | P104: 30089
A105: 2022-07-01 | B105: 7386 | C105: 1683 | D105: 327 | E105: 2091 | F105: 1057 | G105: 1495 | H105: 5241.450314 | J105: =vRTADashboard[[#This Row],[Period]] -> 2022-07-01 | K105: 99871 | L105: =SUM(C94:C105) -> 19097 | M105: 4094 | N105: =SUM(E94:E105) -> 31277 | O105: 21390 | P105: 30859
A106: 2022-08-01 | B106: 8134 | C106: 1773 | D106: 348 | E106: 2241 | F106: 1217 | G106: 1516 | H106: 4841.530441 | J106: =vRTADashboard[[#This Row],[Period]] -> 2022-08-01 | K106: 100848 | L106: =SUM(C95:C106) -> 20179 | M106: =SUM(D95:D106) -> 4155 | N106: 32096 | O106: 21177 | P106: 31705
A107: 2022-09-01 | B107: 7544 | C107: 1713 | D107: 393 | E107: 2081 | F107: 960 | G107: 1289 | H107: 5160.372932 | J107: =vRTADashboard[[#This Row],[Period]] -> 2022-09-01 | K107: 98046 | L107: =SUM(C96:C107) -> 20703 | M107: 4247 | N107: 32027 | O107: 20087 | P107: 30783
A108: 2022-10-01 | B108: 7611 | C108: 1668 | D108: 333 | E108: 2114 | F108: 1124 | G108: 1336 | H108: 5315.267223 | J108: =vRTADashboard[[#This Row],[Period]] -> 2022-10-01 | K108: 95540 | L108: =SUM(C97:C108) -> 20085 | M108: =SUM(D97:D108) -> 4110 | N108: 30195 | O108: 17939 | P108: 27088
A109: 2022-11-01 | B109: 8336 | C109: 1796 | D109: 320 | E109: 2335 | F109: 1171 | G109: 1326 | H109: 5426.651523 | J109: =vRTADashboard[[#This Row],[Period]] -> 2022-11-01 | K109: =SUM(B98:B109) -> 93988 | L109: =SUM(C98:C109) -> 19768 | M109: =SUM(D98:D109) -> 3981 | N109: =SUM(E98:E109) -> 28653 | O109: 16051 | P109: =SUM(G98:G109) -> 23690
A110: 2022-12-01 | B110: 6137 | C110: 1626 | D110: 323 | E110: 1907 | F110: 810 | G110: 1050 | H110: 5047.613933 | J110: =vRTADashboard[[#This Row],[Period]] -> 2022-12-01 | K110: 92380 | L110: 19507 | M110: 3894 | N110: 27577 | O110: 14725 | P110: 21411
A111: 2023-01-01 | B111: 7409 | C111: 1388 | D111: 311 | E111: 1988 | F111: 1014 | G111: 1090 | H111: 5543.567183 | J111: =vRTADashboard[[#This Row],[Period]] -> 2023-01-01 | K111: 91009 | L111: =SUM(C100:C111) -> 19457 | M111: 3971 | N111: 26961 | O111: 13809 | P111: 19574
A112: 2023-02-01 | B112: 7487 | C112: 1660 | D112: 394 | E112: 1980 | F112: 858 | G112: 1002 | H112: 5399.092584 | J112: =vRTADashboard[[#This Row],[Period]] -> 2023-02-01 | K112: 90592 | L112: 19413 | M112: 4025 | N112: 26191 | O112: 13139 | P112: 17967
A113: 2023-03-01 | B113: 7465 | C113: 1884 | D113: 399 | E113: 2217 | F113: 1057 | G113: 1218 | H113: 5434.629934 | J113: =vRTADashboard[[#This Row],[Period]] -> 2023-03-01 | K113: 89980 | L113: =SUM(C102:C113) -> 19854 | M113: =SUM(D102:D113) -> 4100 | N113: =SUM(E102:E113) -> 25872 | O113: =SUM(F102:F113) -> 12781 | P113: 16989
A114: 2023-04-01 | B114: 6139 | C114: 1320 | D114: 229 | E114: 1893 | F114: 792 | G114: 886 | H114: 5590.322663 | J114: =vRTADashboard[[#This Row],[Period]] -> 2023-04-01 | K114: =SUM(B103:B114) -> 88844 | L114: 19749 | M114: 4001 | N114: 25420 | O114: 12341 | P114: 15920
A115: 2023-05-01 | B115: 6874 | C115: 1657 | D115: 326 | E115: 1810 | F115: 952 | G115: 973 | H115: 5552.238797 | J115: =vRTADashboard[[#This Row],[Period]] -> 2023-05-01 | K115: 87811 | L115: 19742 | M115: 4012 | N115: 24797 | O115: 12071 | P115: =SUM(G104:G115) -> 14968
A116: 2023-06-01 | B116: 7707 | C116: 1880 | D116: 355 | E116: 1958 | F116: 859 | G116: 1020 | H116: 5526.401872 | J116: =vRTADashboard[[#This Row],[Period]] -> 2023-06-01 | K116: =SUM(B105:B116) -> 88229 | L116: 20048 | M116: 4058 | N116: 24615 | O116: 11871 | P116: =SUM(G105:G116) -> 14201
A117: 2023-07-01 | B117: 7302 | C117: 1784 | D117: 296 | E117: 2360 | F117: 866 | G117: 967 | H117: 5806.847549 | J117: =vRTADashboard[[#This Row],[Period]] -> 2023-07-01 | K117: 88145 | L117: =SUM(C106:C117) -> 20149 | M117: =SUM(D106:D117) -> 4027 | N117: =SUM(E106:E117) -> 24884 | O117: =SUM(F106:F117) -> 11680 | P117: =SUM(G106:G117) -> 13673
A118: 2023-08-01 | B118: 7477 | C118: 1972 | D118: 365 | E118: 2113 | F118: 793 | G118: 978 | H118: 5673.7982 | J118: =vRTADashboard[[#This Row],[Period]] -> 2023-08-01 | K118: 87488 | L118: =SUM(C107:C118) -> 20348 | M118: =SUM(D107:D118) -> 4044 | N118: =SUM(E107:E118) -> 24756 | O118: =SUM(F107:F118) -> 11256 | P118: =SUM(G107:G118) -> 13135
A119: 2023-09-01 | B119: 7027 | C119: 1735 | D119: 344 | E119: 1778 | F119: 795 | G119: 781 | H119: 5357.498463 | J119: =vRTADashboard[[#This Row],[Period]] -> 2023-09-01 | K119: 86971 | L119: =SUM(C108:C119) -> 20370 | M119: =SUM(D108:D119) -> 3995 | N119: =SUM(E108:E119) -> 24453 | O119: =SUM(F108:F119) -> 11091 | P119: =SUM(G108:G119) -> 12627
A120: 2023-10-01 | B120: 7854 | C120: 1905 | D120: 346 | E120: 2131 | F120: 830 | G120: 902 | H120: 5620.694312 | J120: =vRTADashboard[[#This Row],[Period]] -> 2023-10-01 | K120: 87214 | L120: =SUM(C109:C120) -> 20607 | M120: =SUM(D109:D120) -> 4008 | N120: 24470 | O120: 10797 | P120: =SUM(G109:G120) -> 12193
A121: 2023-11-01 | B121: 7769 | C121: 1941 | D121: 353 | E121: 2052 | F121: 811 | G121: 953 | H121: 5645.758971 | J121: =vRTADashboard[[#This Row],[Period]] -> 2023-11-01 | K121: 86647 | L121: =SUM(C110:C121) -> 20752 | M121: 4041 | N121: 24187 | O121: 10437 | P121: =SUM(G110:G121) -> 11820
A122: 2023-12-01 | B122: 5624 | C122: 1523 | D122: 355 | E122: 1586 | F122: 673 | G122: 943 | H122: 4781.216723 | J122: =vRTADashboard[[#This Row],[Period]] -> 2023-12-01 | K122: =SUM(B111:B122) -> 86134 | L122: =SUM(C111:C122) -> 20649 | M122: =SUM(D111:D122) -> 4073 | N122: =SUM(E111:E122) -> 23866 | O122: =SUM(F111:F122) -> 10300 | P122: =SUM(G111:G122) -> 11713

Sheet RTA vExitReasonCounts (hidden)
A1: Exit Process Reason | B1: Ttal
A2: Claim is too complex for process | B2: 257
A3: Claim requires further investigation | B3: 19307
A4: Duplicated claim | B4: 1460
A5: Incomplete information provided on CNF | B5: 407
A6: Interim payment for child claimant | B6: 9
A7: Interim Payment partial offer not accepted | B7: 16
A8: Interim Payment request not answered and/or paid on time | B8: 96
A9: Other | B9: 16034
A10: Stage 1 costs not paid on time | B10: 419
A11: Value of claim below £1,000 | B11: 16
A12: Value of claim exceeds the upper limit | B12: 497
A13: Withdrawal of offer | B13: 213
A14: Withdrawl of claim | B14: 178
A15: Wrong Portal | B15: 4912
A16: Grand Total | B16: 43821

Sheet Year Calculations (hidden)
A1: Period | B1: CNFs sent | C1: CNFs left at stage 1 | D1: Stage 2 exit | E1: Exit process | F1: Court pack | G1: Settled claims
A2: 2010-11 | B2: =SUM('Backing Sheet Data'!#REF!) ->  | C2: =SUM('Backing Sheet Data'!#REF!) ->  | D2: =SUM('Backing Sheet Data'!#REF!) ->  | E2: =SUM('Backing Sheet Data'!#REF!) ->  | F2: =SUM('Backing Sheet Data'!#REF!) ->  | G2: =SUM('Backing Sheet Data'!#REF!) -> 
A3: 2011-12 | B3: =SUM('Backing Sheet Data'!#REF!) ->  | C3: =SUM('Backing Sheet Data'!#REF!) ->  | D3: =SUM('Backing Sheet Data'!#REF!) ->  | E3: =SUM('Backing Sheet Data'!#REF!) ->  | F3: =SUM('Backing Sheet Data'!#REF!) ->  | G3: =SUM('Backing Sheet Data'!#REF!) -> 
A4: 2012-13 | B4: =SUM('Backing Sheet Data'!#REF!) ->  | C4: =SUM('Backing Sheet Data'!#REF!) ->  | D4: =SUM('Backing Sheet Data'!#REF!) ->  | E4: =SUM('Backing Sheet Data'!#REF!) ->  | F4: =SUM('Backing Sheet Data'!#REF!) ->  | G4: =SUM('Backing Sheet Data'!#REF!) -> 
A5: 2013-14 | B5: =SUM('Backing Sheet Data'!#REF!) ->  | C5: =SUM('Backing Sheet Data'!#REF!) ->  | D5: =SUM('Backing Sheet Data'!#REF!) ->  | E5: =SUM('Backing Sheet Data'!#REF!) ->  | F5: =SUM('Backing Sheet Data'!#REF!) ->  | G5: =SUM('Backing Sheet Data'!#REF!) -> 
A6: 2014-15 | B6: =SUM('Backing Sheet Data'!#REF!) ->  | C6: =SUM('Backing Sheet Data'!#REF!) ->  | D6: =SUM('Backing Sheet Data'!#REF!) ->  | E6: =SUM('Backing Sheet Data'!#REF!) ->  | F6: =SUM('Backing Sheet Data'!#REF!) ->  | G6: =SUM('Backing Sheet Data'!#REF!) -> 
A7: 2015-16 | B7: =SUM('Backing Sheet Data'!#REF!) ->  | C7: =SUM('Backing Sheet Data'!#REF!) ->  | D7: =SUM('Backing Sheet Data'!#REF!) ->  | E7: =SUM('Backing Sheet Data'!#REF!) ->  | F7: =SUM('Backing Sheet Data'!#REF!) ->  | G7: =SUM('Backing Sheet Data'!#REF!) -> 
A8: 2016-17 | B8: =SUM('Backing Sheet Data'!#REF!) ->  | C8: =SUM('Backing Sheet Data'!#REF!) ->  | D8: =SUM('Backing Sheet Data'!#REF!) ->  | E8: =SUM('Backing Sheet Data'!#REF!) ->  | F8: =SUM('Backing Sheet Data'!#REF!) ->  | G8: =SUM('Backing Sheet Data'!#REF!) -> 
A9: 2017-18 | B9: =SUM('Backing Sheet Data'!#REF!) ->  | C9: =SUM('Backing Sheet Data'!#REF!) ->  | D9: =SUM('Backing Sheet Data'!#REF!) ->  | E9: =SUM('Backing Sheet Data'!#REF!) ->  | F9: =SUM('Backing Sheet Data'!#REF!) ->  | G9: =SUM('Backing Sheet Data'!#REF!) -> 
A10: 2018-19 | B10: =SUM('Backing Sheet Data'!#REF!) ->  | C10: =SUM('Backing Sheet Data'!#REF!) ->  | D10: =SUM('Backing Sheet Data'!#REF!) ->  | E10: =SUM('Backing Sheet Data'!#REF!) ->  | F10: =SUM('Backing Sheet Data'!#REF!) ->  | G10: =SUM('Backing Sheet Data'!#REF!) -> 
A11: 2019-20 | B11: =SUM('Backing Sheet Data'!#REF!) ->  | C11: =SUM('Backing Sheet Data'!#REF!) ->  | D11: =SUM('Backing Sheet Data'!#REF!) ->  | E11: =SUM('Backing Sheet Data'!#REF!) ->  | F11: =SUM('Backing Sheet Data'!#REF!) ->  | G11: =SUM('Backing Sheet Data'!#REF!) -> 
A12: 2020-21 | B12: =SUM('Backing Sheet Data'!#REF!) ->  | C12: =SUM('Backing Sheet Data'!#REF!) ->  | D12: =SUM('Backing Sheet Data'!#REF!) ->  | E12: =SUM('Backing Sheet Data'!#REF!) ->  | F12: =SUM('Backing Sheet Data'!#REF!) ->  | G12: =SUM('Backing Sheet Data'!#REF!) -> 
